[Event "Live Chess"]
[Site "Chess.com"]
[Date "2024.06.02"]
[Round "-"]
[White "santhoshrlokesh"]
[Black "Step-S"]
[Result "1-0"]
[WhiteElo "1472"]
[BlackElo "1260"]
[TimeControl "300"]
[EndTime "7:58:59 PDT"]
[Termination "santhoshrlokesh won by resignation"]

1. d4 {[%clk 0:04:59.5]} 1... e5 {[%clk 0:04:58.2]} 2. dxe5 {[%clk 0:04:58.3]}
2... d6 {[%clk 0:04:57.4]} 3. exd6 {[%clk 0:04:57.6]} 3... Bxd6 {[%clk 0:04:57]}
4. Nf3 {[%clk 0:04:52.3]} 4... Nc6 {[%clk 0:04:51.4]} 5. Bg5 {[%clk 0:04:50.2]}
5... Qd7 {[%clk 0:04:42.9]} 6. e3 {[%clk 0:04:47.1]} 6... h6 {[%clk 0:04:34.6]}
7. Bh4 {[%clk 0:04:44]} 7... g5 {[%clk 0:04:30.6]} 8. Bg3 {[%clk 0:04:42.9]}
8... Qe7 {[%clk 0:04:08.7]} 9. Bxd6 {[%clk 0:04:37.6]} 9... cxd6 {[%clk
0:04:07]} 10. Nc3 {[%clk 0:04:35.4]} 10... Nf6 {[%clk 0:04:00.7]} 11. Bb5 {[%clk
0:04:31.5]} 11... O-O {[%clk 0:03:52.3]} 12. O-O {[%clk 0:04:29.8]} 12... Bg4
{[%clk 0:03:29.6]} 13. h3 {[%clk 0:04:25.6]} 13... Bh5 {[%clk 0:03:27.8]} 14.
Bxc6 {[%clk 0:04:15]} 14... bxc6 {[%clk 0:03:26.1]} 15. b3 {[%clk 0:04:09.4]}
15... g4 {[%clk 0:03:20]} 16. hxg4 {[%clk 0:04:07.1]} 16... Bxg4 {[%clk
0:03:14.3]} 17. e4 {[%clk 0:03:52]} 17... Nxe4 {[%clk 0:03:05.9]} 18. Nxe4
{[%clk 0:03:50.8]} 18... Qxe4 {[%clk 0:03:04.6]} 19. Qd3 {[%clk 0:03:45.5]}
19... Qg6 {[%clk 0:02:45.3]} 20. Nh4 {[%clk 0:03:34.9]} 20... Qg5 {[%clk
0:02:35.3]} 21. f3 {[%clk 0:03:25.7]} 21... Qxh4 {[%clk 0:02:13.7]} 22. fxg4
{[%clk 0:03:23.5]} 22... Qxg4 {[%clk 0:02:11.8]} 23. Rf3 {[%clk 0:03:20.8]}
23... Rfe8 {[%clk 0:01:52]} 24. Rg3 {[%clk 0:03:19.1]} 24... Qxg3 {[%clk
0:01:43.1]} 25. Qxg3+ {[%clk 0:03:18]} 25... Kh7 {[%clk 0:01:38.6]} 26. Qxd6
{[%clk 0:03:16.6]} 26... Re6 {[%clk 0:01:30.9]} 27. Qd7 {[%clk 0:03:13.4]} 27...
Kg7 {[%clk 0:01:21.6]} 28. Rf1 {[%clk 0:03:11.6]} 28... Rf6 {[%clk 0:01:09.7]}
29. Rxf6 {[%clk 0:03:08.3]} 29... Kxf6 {[%clk 0:01:08.8]} 30. Qxc6+ {[%clk
0:03:06.1]} 1-0

[Event "Live Chess"]
[Site "Chess.com"]
[Date "2024.06.02"]
[Round "-"]
[White "Hoogleboogle"]
[Black "McFim"]
[Result "0-1"]
[WhiteElo "1255"]
[BlackElo "1778"]
[TimeControl "300"]
[EndTime "7:59:17 PDT"]
[Termination "McFim won on time"]

1. d4 {[%clk 0:04:57.3]} 1... d5 {[%clk 0:04:58.9]} 2. c4 {[%clk 0:04:56.4]}
2... c6 {[%clk 0:04:57]} 3. Nc3 {[%clk 0:04:55.2]} 3... Nf6 {[%clk 0:04:55.8]}
4. Nf3 {[%clk 0:04:50.8]} 4... e6 {[%clk 0:04:54.5]} 5. Bg5 {[%clk 0:04:48.9]}
5... h6 {[%clk 0:04:53]} 6. Bh4 {[%clk 0:04:45.7]} 6... Be7 {[%clk 0:04:50.3]}
7. e3 {[%clk 0:03:25.5]} 7... Nbd7 {[%clk 0:04:48.4]} 8. Bd3 {[%clk 0:03:24.4]}
8... Nf8 {[%clk 0:04:46.6]} 9. Qc2 {[%clk 0:03:22.6]} 9... dxc4 {[%clk
0:04:44.1]} 10. Bxc4 {[%clk 0:03:20.4]} 10... Ng6 {[%clk 0:04:43.2]} 11. Bg3
{[%clk 0:03:18.1]} 11... Nh5 {[%clk 0:04:36.9]} 12. Be5 {[%clk 0:03:16.2]} 12...
Nxe5 {[%clk 0:04:27.6]} 13. dxe5 {[%clk 0:03:13.2]} 13... g6 {[%clk 0:04:26.4]}
14. Rd1 {[%clk 0:03:10.6]} 14... Qc7 {[%clk 0:04:24.9]} 15. g4 {[%clk
0:03:01.1]} 15... Ng7 {[%clk 0:04:23.1]} 16. Ne4 {[%clk 0:02:43.6]} 16... O-O
{[%clk 0:04:03.5]} 17. Nf6+ {[%clk 0:02:41.3]} 17... Bxf6 {[%clk 0:03:56.4]} 18.
exf6 {[%clk 0:02:39.6]} 18... Ne8 {[%clk 0:03:56]} 19. Qc3 {[%clk 0:02:32.4]}
19... b5 {[%clk 0:03:52.2]} 20. Bb3 {[%clk 0:02:22.7]} 20... a5 {[%clk
0:03:50.1]} 21. a4 {[%clk 0:02:20.4]} 21... b4 {[%clk 0:03:48.3]} 22. Qd4 {[%clk
0:02:16.8]} 22... c5 {[%clk 0:03:45.8]} 23. Qf4 {[%clk 0:02:03.4]} 23... Qxf4
{[%clk 0:03:43]} 24. exf4 {[%clk 0:02:02.3]} 24... Nxf6 {[%clk 0:03:42.9]} 25.
g5 {[%clk 0:01:58.6]} 25... hxg5 {[%clk 0:03:39.7]} 26. fxg5 {[%clk 0:01:57]}
26... Ne4 {[%clk 0:03:33.8]} 27. h4 {[%clk 0:01:53.3]} 27... Ba6 {[%clk
0:03:30.2]} 28. h5 {[%clk 0:01:48.3]} 28... gxh5 {[%clk 0:03:26.8]} 29. Rxh5
{[%clk 0:01:44.9]} 29... Kg7 {[%clk 0:03:24.8]} 30. Bc2 {[%clk 0:01:29.6]} 30...
Bb7 {[%clk 0:03:11.1]} 31. Kf1 {[%clk 0:01:21.8]} 31... Rh8 {[%clk 0:02:59.7]}
32. Rxh8 {[%clk 0:01:10.6]} 32... Rxh8 {[%clk 0:02:57.2]} 33. Kg2 {[%clk
0:01:05.6]} 33... Nxg5 {[%clk 0:02:54]} 34. Rd3 {[%clk 0:00:54]} 34... Nxf3
{[%clk 0:02:49]} 35. Rxf3 {[%clk 0:00:51.2]} 35... Bxf3+ {[%clk 0:02:46.2]} 36.
Kxf3 {[%clk 0:00:50.5]} 36... Kf6 {[%clk 0:02:42.4]} 37. Kf4 {[%clk 0:00:49.2]}
37... Rh2 {[%clk 0:02:39.2]} 38. Kf3 {[%clk 0:00:46.4]} 38... Ke5 {[%clk
0:02:37.5]} 39. Be4 {[%clk 0:00:44.7]} 39... f5 {[%clk 0:02:35.2]} 40. Bd3
{[%clk 0:00:40.7]} 40... Rh1 {[%clk 0:02:32.7]} 41. b3 {[%clk 0:00:38.8]} 41...
Rh3+ {[%clk 0:02:28]} 42. Ke2 {[%clk 0:00:36.9]} 42... Kd4 {[%clk 0:02:25.7]}
43. Bc4 {[%clk 0:00:33.5]} 43... e5 {[%clk 0:02:23]} 44. f3 {[%clk 0:00:25]}
44... Rh2+ {[%clk 0:02:20.3]} 45. Kf1 {[%clk 0:00:23.6]} 45... Ke3 {[%clk
0:02:18.6]} 46. Bd5 {[%clk 0:00:17.2]} 46... Rf2+ {[%clk 0:02:15.3]} 47. Kg1
{[%clk 0:00:15.7]} 47... e4 {[%clk 0:02:15.2]} 48. fxe4 {[%clk 0:00:12.9]} 48...
fxe4 {[%clk 0:02:12.5]} 49. Kh1 {[%clk 0:00:11.4]} 49... Rb2 {[%clk 0:02:06.7]}
50. Bc4 {[%clk 0:00:10.4]} 50... Kf3 {[%clk 0:02:04.8]} 51. Kg1 {[%clk
0:00:09.3]} 51... e3 {[%clk 0:02:02.1]} 52. Kh1 {[%clk 0:00:06]} 52... Kg3
{[%clk 0:02:00.3]} 53. Kg1 {[%clk 0:00:03.5]} 53... e2 {[%clk 0:01:46.4]} 0-1

[Event "Live Chess"]
[Site "Chess.com"]
[Date "2024.06.02"]
[Round "-"]
[White "degringolade64"]
[Black "NAZRIZ1977"]
[Result "0-1"]
[WhiteElo "2081"]
[BlackElo "2081"]
[TimeControl "300"]
[EndTime "7:59:17 PDT"]
[Termination "NAZRIZ1977 won by checkmate"]

1. e4 {[%clk 0:04:52.7]} 1... e5 {[%clk 0:04:54.4]} 2. Nf3 {[%clk 0:04:51.5]}
2... d5 {[%clk 0:04:53.5]} 3. Nxe5 {[%clk 0:04:48.7]} 3... Bd6 {[%clk
0:04:52.4]} 4. d4 {[%clk 0:04:47.1]} 4... dxe4 {[%clk 0:04:51.6]} 5. Bc4 {[%clk
0:04:43.8]} 5... Bxe5 {[%clk 0:04:50.6]} 6. Qh5 {[%clk 0:04:42]} 6... Qe7 {[%clk
0:04:39]} 7. Qxe5 {[%clk 0:04:39.4]} 7... Nc6 {[%clk 0:04:32.1]} 8. Qxg7 {[%clk
0:04:35.1]} 8... Qf6 {[%clk 0:04:30.4]} 9. Bxf7+ {[%clk 0:04:31.9]} 9... Qxf7
{[%clk 0:04:28]} 10. Qxh8 {[%clk 0:04:31]} 10... Bf5 {[%clk 0:04:15.8]} 11. O-O
{[%clk 0:04:24.9]} 11... O-O-O {[%clk 0:04:14.3]} 12. Bg5 {[%clk 0:04:17.3]}
12... Re8 {[%clk 0:04:11.3]} 13. d5 {[%clk 0:04:07.2]} 13... Nge7 {[%clk
0:03:59]} 14. Qc3 {[%clk 0:04:02.3]} 14... Nxd5 {[%clk 0:03:57.5]} 15. Qc5
{[%clk 0:03:46.6]} 15... Rg8 {[%clk 0:03:47.7]} 16. Bh4 {[%clk 0:03:45.3]} 16...
Rxg2+ {[%clk 0:03:34.5]} 17. Kxg2 {[%clk 0:03:42.6]} 17... Bh3+ {[%clk 0:03:33]}
18. Kxh3 {[%clk 0:03:36.1]} 18... Qf3+ {[%clk 0:03:28.6]} 19. Bg3 {[%clk
0:03:34.2]} 19... Nf4+ {[%clk 0:03:25.9]} 20. Kh4 {[%clk 0:03:31.6]} 20... Ne7
{[%clk 0:02:48]} 21. Bxf4 {[%clk 0:02:55.7]} 21... Ng6+ {[%clk 0:02:33.4]} 22.
Kg5 {[%clk 0:02:44.7]} 22... Qxf4+ {[%clk 0:02:32.4]} 23. Kh5 {[%clk 0:02:43.6]}
23... Qh4# {[%clk 0:02:31.6]} 0-1

[Event "Live Chess"]
[Site "Chess.com"]
[Date "2024.06.02"]
[Round "-"]
[White "DavrosLight"]
[Black "wadsy27"]
[Result "0-1"]
[WhiteElo "802"]
[BlackElo "2604"]
[TimeControl "300"]
[EndTime "7:59:51 PDT"]
[Termination "wadsy27 won by checkmate"]

1. e4 {[%clk 0:04:59.3]} 1... c5 {[%clk 0:04:58.3]} 2. Nf3 {[%clk 0:04:57.6]}
2... e6 {[%clk 0:04:58.2]} 3. h3 {[%clk 0:04:55]} 3... Nc6 {[%clk 0:04:57.5]} 4.
d4 {[%clk 0:04:53.5]} 4... cxd4 {[%clk 0:04:56]} 5. Nxd4 {[%clk 0:04:52.8]} 5...
Nf6 {[%clk 0:04:55.7]} 6. Nxc6 {[%clk 0:04:51.5]} 6... bxc6 {[%clk 0:04:54.8]}
7. Bg5 {[%clk 0:04:50.2]} 7... Be7 {[%clk 0:04:51.2]} 8. h4 {[%clk 0:04:48.5]}
8... h6 {[%clk 0:04:49.9]} 9. Qd3 {[%clk 0:04:43.1]} 9... hxg5 {[%clk
0:04:48.1]} 10. hxg5 {[%clk 0:04:42.3]} 10... Rxh1 {[%clk 0:04:46.7]} 11. Nd2
{[%clk 0:04:35]} 11... a5 {[%clk 0:04:40.3]} 12. gxf6 {[%clk 0:04:33.4]} 12...
Bxf6 {[%clk 0:04:38.8]} 13. O-O-O {[%clk 0:04:28.3]} 13... Ba6 {[%clk
0:04:38.3]} 14. Qg3 {[%clk 0:04:21.8]} 14... Qb6 {[%clk 0:04:29.8]} 15. Bxa6
{[%clk 0:04:02.1]} 15... Qxb2# {[%clk 0:04:25.9]} 0-1

[Event "Live Chess"]
[Site "Chess.com"]
[Date "2024.06.02"]
[Round "-"]
[White "silunn"]
[Black "educatedlad"]
[Result "1-0"]
[WhiteElo "2063"]
[BlackElo "1745"]
[TimeControl "300"]
[EndTime "7:59:52 PDT"]
[Termination "silunn won by checkmate"]

1. e4 {[%clk 0:04:59.3]} 1... c5 {[%clk 0:04:57.2]} 2. Nf3 {[%clk 0:04:57.8]}
2... e6 {[%clk 0:04:56.8]} 3. d4 {[%clk 0:04:57.4]} 3... cxd4 {[%clk 0:04:56.7]}
4. Nxd4 {[%clk 0:04:56.7]} 4... Nc6 {[%clk 0:04:56.2]} 5. Be3 {[%clk 0:04:51.4]}
5... Nf6 {[%clk 0:04:53.5]} 6. Bd3 {[%clk 0:04:49.2]} 6... d5 {[%clk 0:04:50.9]}
7. Nxc6 {[%clk 0:04:47.1]} 7... bxc6 {[%clk 0:04:49.2]} 8. Nd2 {[%clk
0:04:44.7]} 8... Be7 {[%clk 0:04:45.2]} 9. O-O {[%clk 0:04:43.5]} 9... a5 {[%clk
0:04:42.8]} 10. Qe2 {[%clk 0:04:36]} 10... O-O {[%clk 0:04:39.7]} 11. e5 {[%clk
0:04:31.2]} 11... Nd7 {[%clk 0:04:36.5]} 12. f4 {[%clk 0:04:22.8]} 12... c5
{[%clk 0:04:35.1]} 13. c3 {[%clk 0:04:13.8]} 13... c4 {[%clk 0:04:22.2]} 14. Bc2
{[%clk 0:04:11.8]} 14... Bc5 {[%clk 0:04:22.1]} 15. Nf3 {[%clk 0:03:58.6]} 15...
Qb6 {[%clk 0:04:18.3]} 16. Bxc5 {[%clk 0:03:57.3]} 16... Qxc5+ {[%clk
0:04:14.8]} 17. Kh1 {[%clk 0:03:55.6]} 17... Bb7 {[%clk 0:04:11]} 18. Bxh7+
{[%clk 0:03:44.1]} 18... Kxh7 {[%clk 0:04:08.7]} 19. Ng5+ {[%clk 0:03:39.4]}
19... Kh6 {[%clk 0:03:58.9]} 20. Rf3 {[%clk 0:03:29.1]} 20... Nxe5 {[%clk
0:03:54.2]} 21. Rh3+ {[%clk 0:03:27.1]} 21... Kg6 {[%clk 0:03:52.5]} 22. fxe5
{[%clk 0:03:13.3]} 22... f6 {[%clk 0:03:43.6]} 23. Qh5+ {[%clk 0:03:10.3]} 23...
Kf5 {[%clk 0:03:41.8]} 24. Ne4+ {[%clk 0:02:44.5]} 24... Kxe4 {[%clk 0:03:37.6]}
25. Re1+ {[%clk 0:02:38.4]} 25... Kf4 {[%clk 0:03:34.3]} 26. Rf3# {[%clk
0:02:35.7]} 1-0

[Event "Live Chess"]
[Site "Chess.com"]
[Date "2024.06.02"]
[Round "-"]
[White "CheckThis4"]
[Black "Mangoalo"]
[Result "1-0"]
[WhiteElo "2676"]
[BlackElo "1080"]
[TimeControl "300"]
[EndTime "7:59:55 PDT"]
[Termination "CheckThis4 won by resignation"]

1. d4 {[%clk 0:04:58.5]} 1... Nf6 {[%clk 0:04:58.6]} 2. Nc3 {[%clk 0:04:58.4]}
2... e6 {[%clk 0:04:58.1]} 3. e4 {[%clk 0:04:58.3]} 3... Bb4 {[%clk 0:04:57.4]}
4. e5 {[%clk 0:04:57.6]} 4... Bxc3+ {[%clk 0:04:56.3]} 5. bxc3 {[%clk 0:04:56]}
5... Ng8 {[%clk 0:04:55.6]} 6. Qg4 {[%clk 0:04:55.4]} 6... g6 {[%clk 0:04:52.6]}
7. h4 {[%clk 0:04:54.6]} 7... Nc6 {[%clk 0:04:51.2]} 8. h5 {[%clk 0:04:53.5]}
8... Nge7 {[%clk 0:04:47.5]} 9. Bd3 {[%clk 0:04:51.6]} 9... O-O {[%clk
0:04:45.5]} 10. Bg5 {[%clk 0:04:49.1]} 10... Nf5 {[%clk 0:04:43.4]} 11. Bxd8
{[%clk 0:04:46.9]} 11... Nxd8 {[%clk 0:04:39.2]} 12. hxg6 {[%clk 0:04:45.8]}
12... fxg6 {[%clk 0:04:38.3]} 13. Nf3 {[%clk 0:04:43.5]} 13... Nf7 {[%clk
0:04:36.1]} 14. Ng5 {[%clk 0:04:41.7]} 14... N7h6 {[%clk 0:04:36]} 15. Qh3
{[%clk 0:04:38.3]} 15... d6 {[%clk 0:04:26.9]} 16. Bxf5 {[%clk 0:04:36.4]} 16...
exf5 {[%clk 0:04:25.6]} 17. Qxh6 {[%clk 0:04:35.2]} 1-0

[Event "Live Chess"]
[Site "Chess.com"]
[Date "2024.06.02"]
[Round "-"]
[White "CarmelJane"]
[Black "TheSmoulderingMaster"]
[Result "1-0"]
[WhiteElo "2047"]
[BlackElo "1778"]
[TimeControl "300"]
[EndTime "7:59:59 PDT"]
[Termination "CarmelJane won on time"]

1. e4 {[%clk 0:04:58.1]} 1... c5 {[%clk 0:04:57.9]} 2. Nf3 {[%clk 0:04:57]} 2...
d6 {[%clk 0:04:47.7]} 3. c3 {[%clk 0:04:55.6]} 3... Nc6 {[%clk 0:04:46.5]} 4. d4
{[%clk 0:04:52]} 4... cxd4 {[%clk 0:04:44.9]} 5. cxd4 {[%clk 0:04:51.9]} 5...
Nf6 {[%clk 0:04:43.5]} 6. Nc3 {[%clk 0:04:46.8]} 6... g6 {[%clk 0:04:40.8]} 7.
d5 {[%clk 0:04:45.9]} 7... Ne5 {[%clk 0:04:38.6]} 8. Nxe5 {[%clk 0:04:44.6]}
8... dxe5 {[%clk 0:04:37.6]} 9. h3 {[%clk 0:04:38.8]} 9... Bg7 {[%clk
0:04:36.6]} 10. Be2 {[%clk 0:04:38]} 10... O-O {[%clk 0:04:35]} 11. O-O {[%clk
0:04:37.6]} 11... a6 {[%clk 0:04:32.8]} 12. Bg5 {[%clk 0:04:34.3]} 12... b5
{[%clk 0:04:30.8]} 13. a3 {[%clk 0:04:31.9]} 13... Rb8 {[%clk 0:04:29]} 14. Qd2
{[%clk 0:04:30.3]} 14... Qb6 {[%clk 0:04:24.4]} 15. Be3 {[%clk 0:04:16]} 15...
Qc7 {[%clk 0:04:18.5]} 16. Bh6 {[%clk 0:04:12.1]} 16... Bd7 {[%clk 0:04:13]} 17.
Be3 {[%clk 0:04:04.6]} 17... a5 {[%clk 0:04:08.1]} 18. Rac1 {[%clk 0:04:00.1]}
18... Qd8 {[%clk 0:04:05.6]} 19. b4 {[%clk 0:03:47.8]} 19... axb4 {[%clk
0:03:58.3]} 20. axb4 {[%clk 0:03:47.7]} 20... Rc8 {[%clk 0:03:51.1]} 21. Bc5
{[%clk 0:03:45.8]} 21... Re8 {[%clk 0:03:46.1]} 22. Nxb5 {[%clk 0:03:43.1]}
22... Bxb5 {[%clk 0:03:42.9]} 23. Bxb5 {[%clk 0:03:40.1]} 23... Rf8 {[%clk
0:03:42.5]} 24. Qe2 {[%clk 0:03:34.3]} 24... Rb8 {[%clk 0:03:28.7]} 25. Ra1
{[%clk 0:03:33.2]} 25... Nxe4 {[%clk 0:03:25]} 26. Qxe4 {[%clk 0:03:30.6]} 26...
Rxb5 {[%clk 0:03:23.2]} 27. Ra7 {[%clk 0:03:29.6]} 27... Re8 {[%clk 0:03:16.9]}
28. Rfa1 {[%clk 0:03:27.8]} 28... Bf8 {[%clk 0:03:13.6]} 29. Qxe5 {[%clk
0:03:20.9]} 29... e6 {[%clk 0:03:09.6]} 30. Bxf8 {[%clk 0:03:19.1]} 30... Rxf8
{[%clk 0:03:05.9]} 31. R1a5 {[%clk 0:02:54.2]} 31... Rxd5 {[%clk 0:02:56.4]} 32.
Rxd5 {[%clk 0:02:50.4]} 32... Qxd5 {[%clk 0:02:54.6]} 33. Qxd5 {[%clk
0:02:48.7]} 33... exd5 {[%clk 0:02:53.9]} 34. Rd7 {[%clk 0:02:47.5]} 34... Rb8
{[%clk 0:02:51.7]} 35. b5 {[%clk 0:02:46.1]} 35... d4 {[%clk 0:02:49.8]} 36. Rd5
{[%clk 0:02:34.6]} 36... d3 {[%clk 0:02:48.3]} 37. Kf1 {[%clk 0:02:33.5]} 37...
d2 {[%clk 0:02:47.5]} 38. Ke2 {[%clk 0:02:32.1]} 38... Kf8 {[%clk 0:02:38.5]}
39. Kxd2 {[%clk 0:02:31.1]} 39... Ke7 {[%clk 0:02:37.6]} 40. Kd3 {[%clk
0:02:16.3]} 40... Ke6 {[%clk 0:02:35.6]} 41. Kd4 {[%clk 0:02:14.9]} 41... f6
{[%clk 0:02:34.6]} 42. Rc5 {[%clk 0:02:13.4]} 42... Rd8+ {[%clk 0:02:30.3]} 43.
Kc3 {[%clk 0:02:03.4]} 43... Rd1 {[%clk 0:02:23.2]} 44. Kc2 {[%clk 0:01:52.5]}
44... Rf1 {[%clk 0:02:20.7]} 45. b6 {[%clk 0:01:51.7]} 45... Rxf2+ {[%clk
0:02:19.7]} 46. Kc3 {[%clk 0:01:49.2]} 46... Rf1 {[%clk 0:02:08]} 47. Kc2 {[%clk
0:01:28.1]} 47... Kd6 {[%clk 0:02:00.5]} 48. b7 {[%clk 0:01:17.9]} 48... Rf2+
{[%clk 0:01:54.9]} 49. Kb1 {[%clk 0:01:16]} 49... Rf1+ {[%clk 0:01:50]} 50. Kc2
{[%clk 0:01:10.7]} 50... Rf2+ {[%clk 0:01:48.8]} 51. Kd1 {[%clk 0:01:08.8]}
51... Rb2 {[%clk 0:01:43.7]} 52. Rc4 {[%clk 0:00:58.5]} 52... Rxb7 {[%clk
0:01:41.3]} 53. h4 {[%clk 0:00:58.4]} 53... Kd5 {[%clk 0:01:37.2]} 54. Rc2
{[%clk 0:00:56.3]} 54... Rb4 {[%clk 0:01:33.2]} 55. g3 {[%clk 0:00:54.3]} 55...
Rg4 {[%clk 0:01:31]} 56. Rc3 {[%clk 0:00:51.8]} 56... f5 {[%clk 0:01:27.2]} 57.
Ke2 {[%clk 0:00:49.1]} 57... h6 {[%clk 0:01:25.5]} 58. Kf2 {[%clk 0:00:48.1]}
58... Kd4 {[%clk 0:01:23.8]} 59. Rc6 {[%clk 0:00:46.6]} 59... h5 {[%clk
0:01:18.9]} 60. Ra6 {[%clk 0:00:41.7]} 60... f4 {[%clk 0:01:17]} 61. Ra4+ {[%clk
0:00:39.3]} 61... Ke5 {[%clk 0:01:13.1]} 62. Ra5+ {[%clk 0:00:35.5]} 62... Kf6
{[%clk 0:01:08]} 63. Ra6+ {[%clk 0:00:33.5]} 63... Kg7 {[%clk 0:01:06.7]} 64.
gxf4 {[%clk 0:00:23]} 64... Rxf4+ {[%clk 0:01:04.7]} 65. Kg3 {[%clk 0:00:21.4]}
65... Rg4+ {[%clk 0:01:03.4]} 66. Kh3 {[%clk 0:00:19.7]} 66... Rg1 {[%clk
0:01:01]} 67. Ra5 {[%clk 0:00:18.5]} 67... Kf6 {[%clk 0:00:58.6]} 68. Rb5 {[%clk
0:00:17.1]} 68... Re1 {[%clk 0:00:53]} 69. Rc5 {[%clk 0:00:16.2]} 69... Re5
{[%clk 0:00:49.6]} 70. Rc6+ {[%clk 0:00:15.2]} 70... Kf5 {[%clk 0:00:48.4]} 71.
Rc8 {[%clk 0:00:15]} 71... Re3+ {[%clk 0:00:46.4]} 72. Kh2 {[%clk 0:00:13.8]}
72... Kg4 {[%clk 0:00:44.9]} 73. Rc4+ {[%clk 0:00:12.4]} 73... Kf5 {[%clk
0:00:41.2]} 74. Rc5+ {[%clk 0:00:12]} 74... Re5 {[%clk 0:00:39.6]} 75. Rc6
{[%clk 0:00:11.4]} 75... Re4 {[%clk 0:00:36.2]} 76. Rc5+ {[%clk 0:00:10.4]}
76... Kf6 {[%clk 0:00:33.6]} 77. Rc6+ {[%clk 0:00:09.4]} 77... Kg7 {[%clk
0:00:31.8]} 78. Rc7+ {[%clk 0:00:08]} 78... Kh6 {[%clk 0:00:30.5]} 79. Kh3
{[%clk 0:00:07.6]} 79... Re3+ {[%clk 0:00:29.6]} 80. Kh2 {[%clk 0:00:06.7]}
80... Re6 {[%clk 0:00:21.9]} 81. Rd7 {[%clk 0:00:06.3]} 81... g5 {[%clk
0:00:18.6]} 82. hxg5+ {[%clk 0:00:05.3]} 82... Kxg5 {[%clk 0:00:17.9]} 83. Rd8
{[%clk 0:00:04.6]} 83... h4 {[%clk 0:00:16.8]} 84. Rg8+ {[%clk 0:00:04]} 84...
Kf4 {[%clk 0:00:14.4]} 85. Rh8 {[%clk 0:00:03.9]} 85... Kg4 {[%clk 0:00:11.4]}
86. Rg8+ {[%clk 0:00:02.5]} 86... Kf5 {[%clk 0:00:10.1]} 87. Rh8 {[%clk
0:00:02.4]} 87... Re4 {[%clk 0:00:08.8]} 88. Rf8+ {[%clk 0:00:01.7]} 88... Kg4
{[%clk 0:00:07.1]} 89. Rh8 {[%clk 0:00:01.6]} 89... Re2+ {[%clk 0:00:04.5]} 90.
Kh1 {[%clk 0:00:01.5]} 90... Kg3 {[%clk 0:00:03.3]} 91. Rg8+ {[%clk 0:00:01.4]}
91... Kh3 {[%clk 0:00:02.2]} 92. Kg1 {[%clk 0:00:00.9]} 92... Re1+ {[%clk
0:00:01.1]} 93. Kf2 {[%clk 0:00:00.8]} 1-0

[Event "Live Chess"]
[Site "Chess.com"]
[Date "2024.06.02"]
[Round "-"]
[White "MagnersCarlsberg2870"]
[Black "LL220284LL"]
[Result "0-1"]
[WhiteElo "1770"]
[BlackElo "2467"]
[TimeControl "300"]
[EndTime "8:00:12 PDT"]
[Termination "LL220284LL won by resignation"]

1. d4 {[%clk 0:04:47]} 1... g6 {[%clk 0:04:58.9]} 2. h4 {[%clk 0:04:45.3]} 2...
Nf6 {[%clk 0:04:57.4]} 3. Nc3 {[%clk 0:04:40.5]} 3... d6 {[%clk 0:04:54.5]} 4.
e4 {[%clk 0:04:39.3]} 4... Bg7 {[%clk 0:04:52.6]} 5. Bc4 {[%clk 0:04:38.1]} 5...
c6 {[%clk 0:04:49.5]} 6. a4 {[%clk 0:04:36.5]} 6... d5 {[%clk 0:04:46.5]} 7. Bb3
{[%clk 0:04:32.9]} 7... dxe4 {[%clk 0:04:43.2]} 8. f3 {[%clk 0:04:31.6]} 8...
Qd6 {[%clk 0:04:38.2]} 9. Nge2 {[%clk 0:04:27.6]} 9... exf3 {[%clk 0:04:36.7]}
10. gxf3 {[%clk 0:04:25.4]} 10... Na6 {[%clk 0:04:34.9]} 11. Bf4 {[%clk
0:04:24.3]} 11... Qd8 {[%clk 0:04:32.1]} 12. Qd2 {[%clk 0:04:22.5]} 12... h5
{[%clk 0:04:26.4]} 13. O-O-O {[%clk 0:04:16.8]} 13... Nb4 {[%clk 0:04:23.6]} 14.
Rhg1 {[%clk 0:04:09.2]} 14... Nbd5 {[%clk 0:04:21.7]} 15. Nxd5 {[%clk
0:04:07.6]} 15... Nxd5 {[%clk 0:04:21.6]} 16. Bxd5 {[%clk 0:04:05.8]} 16... Qxd5
{[%clk 0:04:20.1]} 17. Rg3 {[%clk 0:03:53.3]} 17... Be6 {[%clk 0:04:11.6]} 18.
b3 {[%clk 0:03:50.6]} 18... O-O-O {[%clk 0:03:54]} 19. c4 {[%clk 0:03:42.6]}
19... Qf5 {[%clk 0:03:49.1]} 20. d5 {[%clk 0:03:32.6]} 20... cxd5 {[%clk
0:03:43.9]} 21. cxd5 {[%clk 0:03:30.3]} 21... Rxd5 {[%clk 0:03:41.9]} 22. Qb4
{[%clk 0:03:21]} 22... Rc5+ {[%clk 0:03:37]} 0-1

[Event "Live Chess"]
[Site "Chess.com"]
[Date "2024.06.02"]
[Round "-"]
[White "GrahamCuthbert"]
[Black "McCarthyStone"]
[Result "0-1"]
[WhiteElo "1049"]
[BlackElo "2464"]
[TimeControl "300"]
[EndTime "8:00:18 PDT"]
[Termination "McCarthyStone won by checkmate"]

1. d4 {[%clk 0:04:57.3]} 1... c5 {[%clk 0:04:58.6]} 2. Nf3 {[%clk 0:04:55.4]}
2... cxd4 {[%clk 0:04:57.8]} 3. Nxd4 {[%clk 0:04:54.3]} 3... e5 {[%clk
0:04:57.3]} 4. Nf3 {[%clk 0:04:51.9]} 4... Nc6 {[%clk 0:04:55.9]} 5. e3 {[%clk
0:04:41.3]} 5... d5 {[%clk 0:04:54.2]} 6. Bb5 {[%clk 0:04:40.1]} 6... Qa5+
{[%clk 0:04:51.6]} 7. Nc3 {[%clk 0:04:36.2]} 7... Bb4 {[%clk 0:04:50.3]} 8. a4
{[%clk 0:04:25.3]} 8... Ne7 {[%clk 0:04:42.3]} 9. O-O {[%clk 0:04:22.1]} 9...
Bg4 {[%clk 0:04:40.8]} 10. Bd2 {[%clk 0:04:18.5]} 10... e4 {[%clk 0:04:36.8]}
11. h3 {[%clk 0:04:12.4]} 11... Bh5 {[%clk 0:04:35.3]} 12. g4 {[%clk 0:04:04]}
12... Bg6 {[%clk 0:04:33.1]} 13. Nd4 {[%clk 0:03:59.1]} 13... O-O {[%clk
0:04:28.9]} 14. Nxc6 {[%clk 0:03:49.8]} 14... bxc6 {[%clk 0:04:23.6]} 15. Be2
{[%clk 0:03:40.8]} 15... f5 {[%clk 0:04:22.6]} 16. gxf5 {[%clk 0:03:39.3]} 16...
Bxf5 {[%clk 0:04:15.3]} 17. Qe1 {[%clk 0:03:34.2]} 17... Bxh3 {[%clk 0:04:13.5]}
18. b3 {[%clk 0:03:23.7]} 18... Bxf1 {[%clk 0:04:11.5]} 19. Bxf1 {[%clk
0:03:22.5]} 19... Qd8 {[%clk 0:04:02.5]} 20. Qe2 {[%clk 0:03:06.4]} 20... Ng6
{[%clk 0:03:55.9]} 21. Bg2 {[%clk 0:02:56.3]} 21... Qf6 {[%clk 0:03:52.2]} 22.
Rf1 {[%clk 0:02:32.5]} 22... Bxc3 {[%clk 0:03:50.4]} 23. Bxc3 {[%clk 0:02:19.5]}
23... Qxc3 {[%clk 0:03:50.3]} 24. Bh3 {[%clk 0:02:15.1]} 24... Ne5 {[%clk
0:03:45.6]} 25. Kh1 {[%clk 0:01:56.1]} 25... Rf6 {[%clk 0:03:41.2]} 26. Rg1
{[%clk 0:01:53.2]} 26... Raf8 {[%clk 0:03:40]} 27. Rg2 {[%clk 0:01:49.3]} 27...
Qa1+ {[%clk 0:03:35.3]} 28. Kh2 {[%clk 0:01:42.5]} 28... Nf3+ {[%clk 0:03:34.4]}
29. Kg3 {[%clk 0:01:38.9]} 29... Qe5+ {[%clk 0:03:32.7]} 30. Kg4 {[%clk
0:01:35.6]} 30... Rg6# {[%clk 0:03:31.7]} 0-1